bitfinex-derivatives/quotes_SOLF0:USTF0_20250221
["timestamp","ask_amount","ask_price","bid_price","bid_amount"]
[1740130783884,1.4068531,177.71,177.7,7.67658016]
[1740130784388,1.4068531,177.72,177.7,7.67658016]
[1740130784590,1.4068531,177.71,177.7,7.67658016]
[1740130784784,1.4068531,177.72,177.7,7.67658016]
[1740130785089,1.4068531,177.71,177.7,7.67658016]
[1740130785389,1.4068531,177.72,177.7,7.67658016]
[1740130785588,1.4068531,177.71,177.7,7.67658016]
[1740130786695,5.6259,177.71,177.7,7.67658016]
[1740130786889,7.0327531,177.71,177.7,7.67658016]
[1740130787090,7.0327531,177.71,177.7,0.04010372]
[1740130787591,1.4068531,177.71,177.62,5.8515]
[1740130787791,25.99045802,177.7,177.62,5.8515]
[1740130787987,1.4068531,177.69,177.62,5.8515]
[1740130788191,24.58360492,177.75,177.62,5.8515]
[1740130788395,5.6261,177.71,177.63,5.6281]
[1740130788695,24.58360492,177.75,177.63,5.6281]
[1740130788696,1.40709528,177.7,177.63,5.6281]
[1740130788891,1.44271762,177.69,177.65,0.03876149]
[1740130789194,0.03562234,177.69,177.65,0.03876149]
[1740130791085,0.03562234,177.69,177.66,5.6274]
[1740130791292,0.03562234,177.69,177.65,0.03876149]
[1740130792090,0.03562234,177.69,177.68,5.6268]
[1740130792789,0.03562234,177.69,177.65,0.03876149]
[1740130792986,0.03562234,177.69,177.67,5.6269]
[1740130793395,0.03562234,177.69,177.65,0.03876149]
[1740130793891,0.03562234,177.69,177.68,5.6268]
[1740130795598,0.03562234,177.69,177.65,0.03876149]
[1740130795799,0.03562234,177.69,177.66,5.6274]
[1740130796189,0.03562234,177.69,177.65,0.03876149]
[1740130797502,0.03562234,177.69,177.66,5.6274]
[1740130797696,0.03562234,177.69,177.65,0.03876149]
[1740130797901,0.03562234,177.69,177.66,5.6274]
[1740130798198,0.03562234,177.69,177.65,0.03876149]
[1740130798600,0.03562234,177.69,177.68,5.6268]
[1740130799597,0.03562234,177.69,177.65,0.03876149]
[1740130799804,0.03562234,177.69,177.68,5.6268]
[1740130800104,0.03562234,177.69,177.65,0.03876149]
[1740130801000,0.03562234,177.69,177.68,5.6268]
[1740130801201,2.234e-05,177.69,177.68,5.6268]
[1740130801595,2.234e-05,177.69,177.68,61.9068]
[1740130802003,2.234e-05,177.69,177.68,5.6268]
[1740130802206,2.234e-05,177.69,177.68,61.9068]
[1740130802906,2.234e-05,177.69,177.68,86.52492828]
[1740130803106,24.61812828,177.83,177.79,5.623]
[1740130803308,1.40639626,177.82,177.79,5.623]
[1740130803499,1.40639626,177.81,177.69,2.9332]
[1740130803806,1.40639626,177.8,177.7,2.9335]
[1740130804107,1.40641322,177.79,177.71,2.9193]
[1740130804307,0.04234347,177.77,177.73,0.03969926]
[1740130804705,0.04234347,177.77,177.76,5.6243]
[1740130806109,0.04234347,177.77,177.75,5.6245]
[1740130806307,0.04234347,177.77,177.73,0.03969926]
[1740130806906,0.04234347,177.77,177.76,5.6243]
[1740130808606,30.23029657,177.87,177.82,5.6223]
[1740130808812,1.40620993,177.86,177.77,2.9514]
[1740130809007,1.40620993,177.85,177.77,2.9514]
[1740130809213,1.40620993,177.84,177.77,2.9514]
[1740130809512,1.40620993,177.83,177.77,2.9514]
[1740130809707,0.03586426,177.82,177.79,0.04063184]
[1740130810206,30.22929657,177.9,177.79,0.04063184]
[1740130810404,1.40593753,177.89,177.78,2.9753]
[1740130810609,1.40593753,177.88,177.85,5.6212]
[1740130810807,1.40593753,177.87,177.85,5.6212]
[1740130811006,1.40593753,177.86,177.85,5.6212]
[1740130811313,24.60939657,177.9,177.86,5.621]
[1740130811514,1.4058179,177.89,177.86,5.621]
[1740130811715,1.4058179,177.88,177.86,5.66257275]
[1740130811914,1.40580395,177.87,177.86,0.04157275]
[1740130812903,1.40580395,177.87,177.77,27.56079657]
[1740130812904,26.01520052,177.87,177.77,2.9514]
[1740130813104,1.40580395,177.86,177.77,2.9514]
[1740130813311,5.6223,177.83,177.78,5.6236]
[1740130813511,1.40580395,177.82,177.78,5.6236]
[1740130813703,24.60939657,177.87,177.78,5.6236]
[1740130813908,1.40617838,177.86,177.77,2.9514]
[1740130814205,24.65258776,177.84,177.81,0.03728407]
[1740130814515,5.6227,177.82,177.77,8.5754]
[1740130814716,1.40617838,177.81,177.77,8.5754]
[1740130814916,1.40617838,177.8,177.78,0.03772844]
[1740130815115,5.6227,177.81,177.78,0.03772844]
[1740130815316,1.40632448,177.8,177.78,0.03772844]
[1740130815512,1.40638708,177.79,177.78,0.03772844]
[1740130816215,1.40638708,177.79,177.78,5.66132844]
[1740130816616,0.03562255,177.8,177.78,5.66132844]
[1740130816917,1.40634192,177.79,177.78,5.66132844]
[1740130817313,0.03562255,177.8,177.78,5.66132844]
[1740130817314,0.03562255,177.8,177.78,0.03772844]
[1740130817514,0.03562255,177.8,177.79,5.6233]
[1740130817714,1.44189838,177.8,177.79,5.6233]
[1740130821414,1.44189838,177.8,177.78,0.03772844]
[1740130821614,1.40627583,177.79,177.78,5.66122844]
[1740130822015,1.40627583,177.79,177.78,0.03772844]
[1740130822319,7.02957583,177.79,177.78,0.03772844]
[1740130822914,63.27957583,177.79,177.78,0.03772844]
[1740130825018,7.02957583,177.79,177.78,0.03772844]
[1740130825226,7.02957583,177.79,177.64,228.86549657]
[1740130825227,5.6249,177.74,177.64,11.2561]
[1740130825420,1.40627583,177.73,177.65,9.2578]
[1740130825717,1.40627583,177.72,177.69,5.6263]
[1740130826019,1.40627583,177.71,177.65,6.2477]
[1740130826213,1.40627583,177.7,177.65,6.2477]
[1740130826410,1.40627583,177.69,177.66,0.04138224]
[1740130826619,1.40627583,177.68,177.66,0.04138224]
[1740130826818,1.40627583,177.67,177.66,0.04138224]
[1740130828122,1.40627583,177.67,177.66,5.66878224]
[1740130828823,57.69627583,177.67,177.59,6.2565]
[1740130829024,1.40627583,177.66,177.59,6.2565]
[1740130829324,1.40627583,177.65,177.59,6.2565]
[1740130829623,1.40727742,177.64,177.59,6.2565]
[1740130829821,7.742e-05,177.63,177.59,6.2565]
[1740130830123,2.606e-05,177.63,177.6,0.03820664]
[1740130830917,2.606e-05,177.63,177.62,5.6287]
[1740130835220,2.606e-05,177.63,177.62,61.9287]
[1740130836727,15.40458435,177.74,177.62,61.9287]
[1740130836926,15.40458435,177.77,177.64,15.40458435]
[1740130837127,15.40458435,177.77,177.67,15.40458435]
[1740130837326,15.40458435,177.8,177.77,5.6237]
[1740130837525,15.40458435,177.8,177.7,15.40458435]
[1740130837927,15.40458435,177.8,177.78,5.6235]
[1740130838331,15.40458435,177.8,177.7,15.40458435]
[1740130838732,0.0374619,177.77,177.73,0.03873892]
[1740130839034,0.0374619,177.77,177.76,5.6243]
[1740130842237,1.44388074,177.77,177.76,5.6243]
[1740130843433,24.60885941,177.87,177.82,5.6222]
[1740130844229,24.60885941,177.87,177.84,5.6215]
[1740130844436,24.60885941,177.87,177.72,35.85975941]
[1740130844437,80.83885941,177.87,177.72,35.85975941]
[1740130844633,24.60885941,177.87,177.72,35.85975941]
[1740130844829,0.03970258,177.81,177.78,0.04076158]
[1740130845935,0.03970258,177.81,177.8,5.623]
[1740130846341,2.58e-06,177.81,177.8,5.623]
[1740130846541,2.58e-06,177.81,177.8,61.863]
[1740130847541,0.6012,177.96,177.8,56.24]
[1740130847542,24.60885941,177.95,177.8,56.24]
[1740130847738,24.60885941,177.95,177.81,24.60885941]
[1740130848138,24.60885941,177.95,177.9,5.6196]
[1740130848340,30.22735941,177.95,177.9,5.6196]
[1740130848537,24.60885941,177.95,177.91,5.66178371]
[1740130848743,24.60885941,177.95,177.82,2.918]
[1740130848943,24.60885941,177.95,177.91,0.03981751]
[1740130849144,24.60885941,177.95,177.82,2.918]
[1740130849345,24.60885941,177.95,177.91,0.03849289]
[1740130849547,24.60885941,177.95,177.87,0.03675047]
[1740130849742,24.60885941,177.95,177.82,2.918]
[1740130849943,24.60885941,177.95,177.89,0.03818442]
[1740130850342,24.60885941,177.95,177.9,5.6197]
[1740130850547,1.6355,177.97,177.89,0.03818442]
[1740130851246,5.6177,177.97,177.93,5.6189]
[1740130851747,5.6177,177.97,177.93,5.6603182]
[1740130851952,25.49972861,177.98,177.93,5.6603182]
[1740130852345,25.49972861,177.98,177.93,0.0414182]
[1740130852541,5.6186,177.94,177.93,0.0414182]
[1740130853048,25.49972861,177.98,177.93,0.0414182]
[1740130853547,5.6186,177.94,177.93,0.0414182]
[1740130853748,25.49972861,177.98,177.93,0.0414182]
[1740130854650,35.25302289,178.01,177.93,0.0414182]
[1740130854948,24.60885941,178.01,177.93,0.0414182]
[1740130855151,24.60885941,177.98,177.93,0.0414182]
[1740130855353,1.40522892,177.97,177.94,5.6184]
[1740130855545,1.40522892,177.96,177.94,5.6184]
[1740130855851,1.40522892,177.95,177.94,5.6184]
[1740130859151,24.60885941,178.01,177.98,5.6172]
[1740130859352,1.4050335,178.0,177.98,5.6172]
[1740130859655,1.4050335,177.99,177.98,5.65268978]
[1740130860657,15.34099896,178.05,178.02,5.6159]
[1740130860857,1.40486375,178.04,177.95,2.9518]
[1740130861061,1.40486375,178.03,178.02,0.04194385]
[1740130861261,1.40486375,178.03,177.99,5.6167]
[1740130861457,1.40486375,178.02,178.01,0.04203716]
[1740130861760,16.74586271,178.02,178.01,0.04203716]
[1740130862156,72.92586271,178.02,178.01,0.04203716]
[1740130863060,16.74586271,178.02,178.01,0.04203716]
[1740130864659,72.92586271,178.02,178.01,0.04203716]
[1740130864856,16.74586271,178.02,178.01,0.04203716]
[1740130865056,15.34099896,178.05,178.01,0.04203716]
[1740130865261,1.40475654,178.04,178.01,5.65823716]
[1740130865561,1.40475654,178.03,178.01,0.04203716]
[1740130865761,15.34099896,178.02,178.01,0.04203716]
[1740130865961,22.36195905,178.02,178.01,0.04203716]
[1740130866162,78.54195905,178.02,178.01,0.04203716]
[1740130866869,5.6174,177.98,177.89,2.9518]
[1740130867064,15.34099896,177.99,177.89,2.9518]
[1740130867759,15.34099896,177.99,177.96,5.6178]
[1740130868270,15.37664062,177.99,177.96,5.6178]
[1740130868465,15.37664062,177.99,177.97,5.6176]
[1740130868762,0.03564166,177.99,177.96,0.03665016]
[1740130869568,5.6173,177.98,177.96,0.03665016]
[1740130870769,15.34099896,177.98,177.96,0.03665016]
[1740130870960,5.6176,177.97,177.96,0.03665016]
[1740130871369,57.5952338,177.97,177.88,5.8569]
[1740130871575,15.34099896,177.95,177.88,5.8569]
[1740130871768,15.34099896,177.95,177.83,3.1854]
[1740130871769,15.34099896,177.92,177.83,3.1854]
[1740130871971,15.34099896,177.92,177.83,9.2736]
[1740130872271,15.34099896,177.95,177.84,15.34099896]
[1740130872470,15.34099896,177.98,177.84,15.34099896]
[1740130872671,3.74e-05,177.91,177.88,0.03800797]
[1740130872871,15.34099896,177.98,177.88,0.03800797]
[1740130873174,1.40530635,177.97,177.88,0.03800797]
[1740130873369,15.34099896,177.98,177.88,0.03800797]
[1740130873672,0.04040997,177.95,177.88,0.03800797]
[1740130873872,0.04040997,177.95,177.94,5.6186]
[1740130875476,0.04040997,177.95,177.9,0.04165296]
[1740130875675,15.38140893,177.95,177.9,0.04165296]
[1740130875975,7.02389883,177.94,177.9,5.66135296]
[1740130876177,1.40535426,177.93,177.9,0.04165296]
[1740130876478,15.38140893,177.95,177.92,5.619]
[1740130876678,1.40534433,177.94,177.9,0.04165296]
[1740130876979,0.04040997,177.95,177.94,5.6186]
[1740130878469,9.97e-06,177.95,177.94,5.6186]
[1740130879069,9.97e-06,177.95,177.91,6.1167]
[1740130879275,1.40515615,177.94,177.92,5.619]
[1740130879476,1.40515615,177.93,177.91,2.929]
[1740130879780,1.40515615,177.92,177.9,0.04165296]
[1740130879976,5.61840997,177.95,177.91,5.6194]
[1740130880175,5.61840997,177.95,177.9,0.04165296]
[1740130880176,1.40534307,177.94,177.9,0.04165296]
[1740130880375,5.6195,177.91,177.9,0.04165296]
[1740130880582,7.02484307,177.91,177.9,0.04165296]
[1740130880975,1.40534307,177.91,177.82,0.56456477]
[1740130881175,5.621,177.87,177.81,6.0854]
[1740130881374,1.40534307,177.86,177.81,6.0854]
[1740130881574,1.40534307,177.85,177.75,60.26168947]
[1740130881777,1.40534307,177.84,177.76,6.0854]
[1740130881977,1.40534307,177.83,177.76,6.0854]
[1740130882174,1.44265864,177.82,177.8,5.6228]
[1740130882379,1.40534307,177.81,177.78,0.04067293]
[1740130882980,1.40534307,177.81,177.8,5.623]
[1740130883577,4.307e-05,177.81,177.8,5.623]
[1740130884080,0.03731557,177.82,177.81,5.6227]
[1740130884481,24.60106246,177.93,177.81,56.24]
[1740130884681,24.60106246,177.93,177.88,5.6205]
[1740130884878,24.60106246,177.93,177.78,24.60106246]
[1740130885283,24.60106246,177.93,177.85,5.6212]
[1740130885479,24.60106246,177.93,177.78,24.60106246]
[1740130885784,24.60106246,177.93,177.87,0.0397332]
[1740130886882,5.6198,177.91,177.87,0.0397332]
[1740130887382,24.60106246,177.93,177.87,0.0397332]
[1740130887577,5.6205,177.88,177.87,0.0397332]
[1740130887983,61.8405,177.88,177.87,0.0397332]
[1740130888583,24.60106246,177.9,177.87,0.0397332]
[1740130888883,24.60106246,177.93,177.87,0.0397332]
[1740130889080,5.6194,177.92,177.87,0.0397332]
[1740130889582,24.60106246,177.93,177.87,0.0397332]
[1740130890180,5.62,177.9,177.87,0.0397332]
[1740130890381,24.60106246,177.93,177.87,0.0397332]
[1740130891176,5.62,177.9,177.87,5.6603332]
[1740130891382,24.60106246,177.93,177.87,0.0397332]
[1740130891781,5.6205,177.88,177.87,0.0397332]
[1740130893387,61.8405,177.88,177.87,0.0397332]
[1740130894189,5.6205,177.88,177.87,0.0397332]
[1740130894391,5.6203,177.89,177.87,0.0397332]
[1740130894785,24.60106246,177.9,177.87,0.0397332]
[1740130894990,5.6202,177.89,177.87,0.0397332]
[1740130895185,24.60106246,177.9,177.87,0.0397332]
[1740130895587,5.6204,177.89,177.87,0.0397332]
[1740130895790,24.60106246,177.9,177.87,0.0397332]
[1740130896691,5.6205,177.88,177.87,0.0397332]
[1740130896993,80.82106246,177.9,177.76,6.0854]
[1740130897191,5.6217,177.85,177.81,5.6225]
[1740130897595,24.60106246,177.87,177.76,6.0854]
[1740130897788,5.6219,177.84,177.76,6.0854]
[1740130897987,24.60106246,177.87,177.76,6.0854]
[1740130898192,0.03954361,177.82,177.78,0.03729182]
[1740130899687,5.66194361,177.82,177.79,5.6233]
[1740130899889,0.03954361,177.82,177.78,0.03729182]
[1740130900794,0.03954361,177.82,177.8,5.6227]
[1740130901694,0.03954361,177.82,177.78,0.03729182]
[1740130903296,0.03954361,177.82,177.8,5.6228]
[1740130906295,0.03954361,177.82,177.78,0.03729182]
[1740130906497,15.37872985,177.81,177.78,0.03729182]
[1740130906803,5.6233,177.79,177.78,0.03729182]
[1740130907894,5.6237,177.78,177.7,9.296]
[1740130908197,15.37872985,177.77,177.75,5.6245]
[1740130908593,15.37872985,177.77,177.7,9.296]
[1740130908594,15.37872985,177.8,177.7,9.296]
[1740130908797,15.37872985,177.8,177.77,5.6237]
[1740130909000,21.00182985,177.8,177.77,5.6237]
[1740130909197,21.03917297,177.8,177.77,5.6237]
[1740130909397,21.03917297,177.8,177.77,5.66692131]
[1740130910401,16.87,177.76,177.58,22.68894644]
[1740130910596,15.37872985,177.67,177.58,7.56298214]
[1740130910791,21.00612985,177.67,177.58,7.56298214]
[1740130910994,15.37872985,177.67,177.58,7.56298214]
[1740130911190,15.37872985,177.63,177.58,7.56298214]
[1740130911405,15.37872985,177.63,177.61,0.04130623]
[1740130914500,21.00742985,177.63,177.61,0.04130623]
[1740130915201,15.37872985,177.63,177.61,0.04130623]
[1740130915994,21.00742985,177.63,177.61,0.04130623]
[1740130916198,15.37872985,177.63,177.61,0.04130623]
[1740130916697,5.6287,177.62,177.61,0.04130623]
[1740130920805,5.6284,177.63,177.61,0.04130623]
[1740130921003,0.0394595,177.64,177.61,0.04130623]
[1740130921403,5.6677595,177.64,177.61,0.04130623]
[1740130921909,5.6285,177.63,177.61,0.04130623]
[1740130922811,5.6675595,177.64,177.61,0.04130623]
[1740130923004,0.0394595,177.64,177.61,0.04130623]
[1740130923309,5.6287,177.62,177.61,0.04130623]
[1740130923501,21.00742985,177.62,177.61,0.04130623]
[1740130923898,5.6303,177.57,177.56,2.9436]
[1740130924201,15.37872985,177.59,177.54,3.1945]
[1740130924403,15.37872985,177.56,177.47,3.0906]
[1740130924600,15.37872985,177.5,177.47,3.0906]
[1740130925001,5.6331,177.48,177.47,3.13380321]
[1740130925200,5.6331,177.48,177.47,0.04320321]
[1740130925404,15.41701398,177.5,177.47,0.04320321]
[1740130925606,5.6331,177.48,177.47,0.04320321]
[1740130925806,15.41701398,177.5,177.38,3.049]
[1740130926103,15.37872985,177.46,177.38,3.049]
[1740130926607,24.71161168,177.46,177.38,3.049]
[1740130926908,0.04278275,177.44,177.4,0.04159045]
[1740130927108,0.04278275,177.44,177.43,5.6347]
[1740130927312,24.71161168,177.52,177.41,56.36]
[1740130927505,0.03674972,177.45,177.42,0.04009341]
[1740130927706,24.71161168,177.52,177.42,0.04009341]
[1740130927911,24.71161168,177.49,177.42,0.04009341]
[1740130928205,1.6167,177.56,177.38,3.049]
[1740130928407,24.71161168,177.51,177.38,3.049]
[1740130928712,24.71161168,177.51,177.41,5.6353]
[1740130929007,0.04177526,177.46,177.43,0.03900329]
[1740130929610,24.71161168,177.51,177.43,0.03900329]
[1740130930012,24.71161168,177.57,177.43,0.03900329]
[1740130930508,24.71161168,177.54,177.4,24.71161168]
[1740130930706,0.04180559,177.52,177.48,0.03579804]
[1740130931012,24.71161168,177.54,177.48,0.03579804]
[1740130931205,0.03921972,177.52,177.48,0.03579804]
[1740130932503,24.71161168,177.51,177.48,0.03579804]
[1740130933210,56.34,177.5,177.39,3.1311]
[1740130933412,30.34581168,177.45,177.39,3.1311]
[1740130933615,24.71161168,177.45,177.39,3.1311]
[1740130934210,0.03679314,177.44,177.4,0.04171429]
[1740130935008,0.03679314,177.44,177.4,5.67731429]
[1740130936007,0.03679314,177.44,177.4,0.04171429]
[1740130937612,24.71161168,177.42,177.4,0.04171429]
[1740130938214,5.6354,177.41,177.4,0.04171429]
[1740130938513,24.71161168,177.42,177.35,5.6372]
[1740130938706,30.34861168,177.36,177.28,2.9997]
[1740130938906,30.34861168,177.36,177.31,5.6382]
[1740130939109,24.71161168,177.36,177.28,2.9997]
[1740130939306,32.97161168,177.39,177.28,2.9997]
[1740130939509,32.97161168,177.39,177.34,5.6373]
[1740130939808,0.0386861,177.35,177.28,2.9997]
[1740130940010,0.0386861,177.35,177.34,5.6376]
[1740130940206,8.26,177.39,177.3,0.04266224]
[1740130941013,8.26,177.39,177.37,5.6366]
[1740130941210,0.04299369,177.36,177.3,0.04266224]
[1740130941413,24.71161168,177.45,177.33,0.04330965]
[1740130941605,24.71161168,177.45,177.42,5.635]
[1740130942005,24.71161168,177.45,177.31,24.71161168]
[1740130942610,0.03734913,177.4,177.36,0.03666048]
[1740130943010,0.03734913,177.4,177.39,5.636]
[1740130944010,0.03734913,177.4,177.37,6.053]
[1740130944417,0.03734913,177.4,177.38,5.6361]
[1740130944716,0.03734913,177.4,177.36,0.03666048]
[1740130946017,0.03734913,177.4,177.39,5.636]
[1740130946421,24.71161168,177.45,177.36,0.03666048]
[1740130946718,24.71161168,177.45,177.43,5.6344]
[1740130947018,24.71161168,177.48,177.32,11.2763]
[1740130947416,5.6335,177.47,177.32,11.2763]
[1740130947616,2.97e-06,177.42,177.38,0.03691073]
[1740130947919,24.71161168,177.51,177.49,5.6328]
[1740130948316,24.71161168,177.51,177.38,2.9159]
[1740130948715,30.34391168,177.51,177.47,5.6332]
[1740130949016,24.75255126,177.51,177.38,2.9159]
[1740130949212,24.71161168,177.48,177.47,0.03845587]
[1740130949417,0.04060363,177.46,177.38,2.9159]
[1740130950420,5.67470363,177.46,177.41,5.6351]
[1740130950721,24.71161168,177.45,177.41,5.6351]
[1740130951419,30.34591168,177.45,177.41,5.6351]
[1740130951624,24.71161168,177.45,177.4,0.03625651]
[1740130951812,0.04060363,177.46,177.4,0.03625651]
[1740130952621,24.71161168,177.45,177.4,0.03625651]
[1740130953126,0.04060363,177.46,177.4,0.03625651]
[1740130953430,24.71161168,177.39,177.32,6.1319]
[1740130953726,24.71161168,177.39,177.34,5.6376]
[1740130954423,5.637,177.36,177.27,6.1095]
[1740130954723,5.637,177.36,177.27,9.2193]
[1740130954924,5.637,177.36,177.3,0.04070093]
[1740130955118,0.03894311,177.33,177.32,5.638]
[1740130955416,0.03894311,177.33,177.3,0.04070093]
[1740130955621,0.03894311,177.33,177.31,5.6385]
[1740130956413,24.75055479,177.33,177.3,0.04070093]
[1740130957319,24.75055479,177.33,177.23,6.1441]
[1740130957517,24.71161168,177.3,177.23,3.1098]
[1740130957719,24.71161168,177.3,177.15,3.1744]
[1740130958023,24.71161168,177.3,177.15,9.2718]
[1740130958213,24.71161168,177.3,177.15,6.0974]
[1740130958414,24.71161168,177.3,177.21,0.03637507]
[1740130958724,0.03814991,177.24,177.21,0.03637507]
[1740130958926,24.71161168,177.33,177.21,0.03637507]
[1740130959223,24.71161168,177.33,177.19,24.71161168]
[1740130959622,24.71161168,177.3,177.16,27.88601168]
[1740130960027,0.03701415,177.25,177.21,0.04236428]
[1740130960323,0.03701415,177.25,177.24,5.6408]
[1740130961122,24.71161168,177.33,177.21,0.04236428]
[1740130961321,24.71161168,177.33,177.16,27.88601168]
[1740130961720,3.1269,177.35,177.16,27.88601168]
[1740130961915,24.71161168,177.34,177.16,27.88601168]
[1740130962321,24.71161168,177.31,177.23,0.03653791]
[1740130962517,0.0420417,177.27,177.23,0.03653791]
[1740130962714,5.6389,177.3,177.25,0.04116733]
[1740130962920,0.03704606,177.27,177.25,0.04116733]
[1740130963122,5.6392,177.29,177.16,27.88601168]
[1740130963319,0.03666279,177.28,177.26,0.03846882]
[1740130963615,5.67957219,177.29,177.25,0.03963458]
[1740130964024,0.04037219,177.29,177.25,0.03963458]
[1740130965323,0.04037219,177.29,177.27,5.6395]
[1740130966230,0.04037219,177.29,177.25,0.03963458]
[1740130966630,5.6396,177.28,177.25,0.03963458]
[1740130967021,0.04037219,177.29,177.25,0.03963458]
[1740130969329,8.26,177.36,177.25,0.03963458]
[1740130969529,13.8972,177.36,177.23,3.1983]
[1740130969729,28.94272941,177.4,177.34,5.6376]
[1740130969931,24.71161168,177.4,177.34,5.6376]
[1740130970230,4.23111773,177.42,177.25,24.71161168]
[1740130970432,0.0389272,177.34,177.31,0.03763316]
[1740130970733,24.71161168,177.43,177.28,24.71161168]
[1740130970924,24.71161168,177.43,177.35,5.637]
[1740130971430,24.71161168,177.43,177.37,5.6366]
[1740130971828,5.65543438,177.42,177.38,0.03718755]
[1740130972023,0.02013438,177.42,177.38,5.67338755]
[1740130972225,5.65523438,177.42,177.38,0.03718755]
[1740130972427,0.02013438,177.42,177.38,0.03718755]
[1740130972831,5.6354,177.41,177.38,0.03718755]
[1740130973133,0.02013438,177.42,177.38,0.03718755]
[1740130974937,0.02013438,177.42,177.39,5.6359]
[1740130975137,0.02013438,177.42,177.38,0.03718755]
[1740130975338,0.02013438,177.42,177.29,3.1462]
[1740130975540,24.71161168,177.35,177.29,3.1462]
[1740130976147,30.34901168,177.35,177.26,3.1302]
[1740130976348,24.71161168,177.27,177.13,16.92]
[1740130976648,24.71161168,177.22,177.12,91.63771735]
[1740130976944,24.71161168,177.25,177.19,0.03732195]
[1740130977247,0.03933217,177.2,177.19,0.03732195]
[1740130977642,24.71161168,177.25,177.19,0.03732195]
[1740130977845,0.03625322,177.21,177.19,0.03732195]
[1740130982247,5.67805322,177.21,177.19,0.03732195]
[1740130982454,24.71161168,177.19,177.13,2.9115]
[1740130983545,24.71161168,177.19,177.14,0.04022936]
[1740130983745,24.71161168,177.16,177.14,0.04022936]
[1740130984055,24.71161168,177.16,177.04,6.1663]
[1740130984349,24.71161168,177.19,176.96,30.25192858]
[1740130984350,24.71161168,177.06,176.96,30.25192858]
[1740130984553,24.71161168,177.06,176.98,5.6489]
[1740130984752,2.4244,177.18,176.96,30.25192858]
[1740130984952,24.71161168,177.06,176.99,5.6487]
[1740130985254,24.71161168,177.06,177.05,0.04252121]
[1740130985551,30.35821168,177.06,177.04,0.03915442]
[1740130985857,24.71161168,177.06,176.96,30.25192858]
[1740130986048,24.71161168,177.0,176.96,30.25192858]
[1740130986851,24.71161168,176.97,176.95,60.50385719]
[1740130987250,24.71161168,176.97,176.83,24.71161168]
[1740130987449,24.74740889,177.0,176.83,24.71161168]
[1740130987655,3.075,177.06,176.86,24.71161168]
[1740130987853,24.71161168,177.06,176.92,24.71161168]
[1740130988049,24.71161168,177.09,176.95,24.71161168]
[1740130988256,24.71161168,177.12,176.95,24.71161168]
[1740130988657,24.71161168,177.12,177.06,5.6464]
[1740130988858,24.71161168,177.15,177.01,24.71161168]
[1740130989052,24.71161168,177.15,177.02,9.344]
[1740130989254,24.71161168,177.12,177.02,9.344]
[1740130989556,0.04151185,177.1,177.07,0.04281582]
[1740130990156,0.04151185,177.1,177.08,5.6457]
[1740130991258,1.7493,177.16,177.13,5.6442]
[1740130991462,24.71161168,177.19,177.07,0.04281582]
[1740130991758,24.71161168,177.19,177.04,24.71161168]
[1740130992163,24.71161168,177.19,177.02,9.344]
[1740130992164,3.2247,177.25,177.1,24.71161168]
[1740130992359,27.93631168,177.25,177.11,6.3235]
[1740130992560,27.93631168,177.25,177.16,0.04211408]
[1740130992763,0.03992034,177.2,177.16,0.04211408]
[1740130993169,0.03992034,177.2,177.19,5.6424]
[1740130993462,24.71161168,177.28,177.17,56.44]
[1740130993667,34.63161168,177.31,177.16,24.75372576]
[1740130993869,24.71161168,177.31,177.16,24.71161168]
[1740130994263,24.71161168,177.24,177.11,6.3235]
[1740130994658,0.04208739,177.19,177.16,0.04116796]
[1740130995668,24.71161168,177.27,177.17,56.44]
[1740130995868,24.71161168,177.27,177.16,0.04116796]
[1740130996162,24.71161168,177.27,177.14,24.71161168]
[1740130996569,4.9556043,177.35,177.14,24.71161168]
[1740130996570,24.71161168,177.3,177.14,24.71161168]
[1740130996868,24.71161168,177.33,177.2,24.71161168]
[1740130997067,24.71161168,177.36,177.21,6.2374]
[1740130997265,24.71161168,177.36,177.28,5.6393]
[1740130997865,9.94,177.4,177.23,24.71161168]
[1740130997866,24.71161168,177.39,177.23,24.71161168]
[1740130998068,24.71161168,177.42,177.26,24.71161168]
[1740130998265,27.91911168,177.45,177.29,24.75499936]
[1740130998468,27.91911168,177.45,177.39,5.636]
[1740130998671,24.71161168,177.45,177.39,5.636]
[1740130998968,194.26044384,177.47,177.41,5.6353]
[1740130999166,194.26044384,177.47,177.4,0.04017355]
[1740130999369,24.71161168,177.42,177.4,0.04017355]
[1740130999570,24.71161168,177.42,177.33,6.2374]
[1740131000667,0.03571027,177.39,177.33,6.2374]
[1740131000973,0.03571027,177.39,177.36,0.03925043]
[1740131001666,40.17494114,177.37,177.36,0.03925043]
[1740131001867,40.17494114,177.37,177.28,3.1703]
[1740131002065,40.17494114,177.37,177.25,3.0364]